fUST/lending_fUST_20240630
["ID","MTS","AMOUNT","RATE_DAILY","PERIOD"]
[330685356,1719709843472,-906.58,0.00016438,2]
[330685357,1719709843481,-535.79,0.00016438,2]
[330685358,1719709843491,-500.0,0.00016438,2]
[330685359,1719709843500,-500.0,0.00016438,2]
[330685360,1719709843510,-500.0,0.00016438,2]
[330685361,1719709843520,-1351.94,0.00016438,2]
[330685362,1719709843529,-500.0,0.00016438,2]
[330685363,1719709843538,-500.0,0.00016438,2]
[330685364,1719709843548,-500.0,0.00016438,2]
[330685365,1719709843557,-500.0,0.00016438,2]
[330685366,1719709843566,-500.0,0.00016438,2]
[330685367,1719709843576,-500.0,0.00016438,2]
[330685368,1719709843585,-864.11,0.00016438,2]
[330685369,1719709843595,-500.0,0.00016438,2]
[330685370,1719709843604,-500.0,0.00016438,2]
[330685372,1719709843614,-899.91,0.00016438,2]
[330685374,1719709843623,-5273.63,0.00016438,2]
[330685376,1719709843632,-500.0,0.00016438,2]
[330685377,1719709843644,-500.0,0.00016438,2]
[330685378,1719709843654,-22695.64,0.00016438,2]
[330685379,1719709843663,-1487.78,0.00016438,2]
[330685380,1719709843673,-1500.34,0.00016438,2]
[330685381,1719709843682,-1898.02,0.00016438,2]
[330685382,1719709843692,-500.0,0.00016438,2]
[330685383,1719709843701,-500.0,0.00016438,2]
[330685384,1719709843711,-500.0,0.00016438,2]
[330685385,1719709843720,-500.0,0.00016438,2]
[330685386,1719709843730,-1069.47,0.00016438,2]
[330685387,1719709843739,-572.18,0.00016438,2]
[330685388,1719709843748,-500.0,0.00016438,2]
[330685389,1719709843758,-884.05,0.00016438,2]
[330685390,1719709843768,-621.4,0.00016438,2]
[330685391,1719709843777,-500.0,0.00016438,2]
[330685393,1719709843786,-500.0,0.00016438,2]
[330685395,1719709843795,-500.0,0.00016438,2]
[330685396,1719709843805,-3476.85,0.00016438,2]
[330685397,1719709843814,-599.05,0.00016438,2]
[330685398,1719709843824,-843.19,0.00016438,2]
[330685399,1719709843833,-586.35,0.00016438,2]
[330685400,1719709843843,-500.0,0.00016438,2]
[330685401,1719709843852,-500.0,0.00016438,2]
[330685402,1719709843862,-504.18292755,0.00016438,2]
[330685403,1719709843871,-500.0,0.00016438,2]
[330685404,1719709843880,-500.0,0.00016438,2]
[330685405,1719709843889,-500.0,0.00016438,2]
[330685406,1719709843900,-1796.98,0.00016438,2]
[330685407,1719709843909,-500.0,0.00016438,2]
[330685408,1719709844011,-777.03,0.00016438,2]
[330685409,1719709844021,-9534.95,0.00016438,2]
[330685410,1719709844030,-500.0,0.00016438,2]
[330685411,1719709844039,-547.22061459,0.00016438,2]
[330685412,1719709844049,-500.0,0.00016438,2]
[330685413,1719709844059,-500.0,0.00016438,2]
[330685414,1719709844072,-1186.51,0.00016438,2]
[330685415,1719709844082,-500.0,0.00016438,2]
[330685416,1719709844091,-508.08559448,0.00016438,2]
[330685417,1719709844100,-3773.21,0.00016438,2]
[330685418,1719709844110,-571.87425592,0.00016438,2]
[330685419,1719709844120,-501.90636135,0.00016438,2]
[330685420,1719709844129,-500.0,0.00016438,2]
[330685421,1719709844138,-500.0,0.00016438,2]
[330685422,1719709844152,-578.73,0.00016438,2]
[330685423,1719709844162,-1938.82,0.00016489,2]
[330685424,1719709844171,-3167.37,0.00016489,2]
[330685425,1719709844180,-245.39095096,0.0001649,2]
[330685426,1719709844190,-2503.72,0.00016491,2]
[330685427,1719709844199,-500.0,0.00016491,2]
[330685428,1719709844208,-1919.79,0.00016491,2]
[330685429,1719709844217,-2033.09,0.00016491,2]
[330685430,1719709844226,-39767.3311481,0.000169,2]
[330685431,1719709844236,-151.0,0.000169,2]
[330685432,1719709844245,-773.0,0.000169,2]
[330685433,1719709844254,-5285.14289515,0.00016912,2]
[330685434,1719709844263,-1914.10700208,0.0001698,7]
[330685435,1719709844272,-63308.10413952,0.0001698,2]
[330685465,1719709844700,-999.9933705,0.00016489,2]
[330685823,1719709970391,262.51529348,0.00015,2]
[330685827,1719710019687,200.26216855,0.00014999,2]
[330685962,1719711039293,-10000.7660253,0.00015386,2]
[330685964,1719711039302,-219.1332923,0.00015424,2]
[330685966,1719711039312,-969.16681197,0.00016238,2]
[330685968,1719711039321,-17315.86511178,0.00016338,2]
[330685970,1719711039331,-5085.72050359,0.00016338,2]
[330685972,1719711039340,-2000.0,0.00016338,2]
[330685974,1719711039349,-117622.59964674,0.0001643,2]
[330685976,1719711039359,-500.0,0.00016438,2]
[330685978,1719711039368,-500.0,0.00016438,2]
[330685980,1719711039378,-1857.26,0.00016438,2]
[330685982,1719711039388,-500.0,0.00016438,2]
[330685983,1719711039398,-500.0,0.00016438,2]
[330685984,1719711039407,-280.83590196,0.00016438,2]
[330685985,1719711039417,-1371.07,0.00016438,2]
[330685986,1719711039427,-500.0,0.00016438,2]
[330685987,1719711039437,-500.0,0.00016438,2]
[330685988,1719711039446,-500.0,0.00016438,2]
[330685989,1719711039456,-500.0,0.00016438,2]
[330685990,1719711039466,-500.0,0.00016438,2]
[330685991,1719711039476,-500.0,0.00016438,2]
[330685992,1719711039485,-500.0,0.00016438,2]
[330685993,1719711039495,-500.0,0.00016438,2]
[330685994,1719711039504,-500.0,0.00016438,2]
[330685995,1719711039514,-1829.55,0.00016438,2]
[330685996,1719711039523,-385.10008515,0.00016438,2]
[330685998,1719711039533,-500.0,0.00016438,2]
[330686000,1719711039543,-501.9338835,0.00016438,2]
[330686002,1719711039552,-300.84990925,0.00016438,2]
[330686004,1719711039565,-500.0,0.00016438,2]
[330686006,1719711039575,-665.63,0.00016438,2]
[330686008,1719711039585,-562.56024836,0.00016438,2]
[330686010,1719711039598,-2508.91,0.00016438,2]
[330686012,1719711039609,-521.51,0.00016438,2]
[330686014,1719711039619,-500.0,0.00016438,2]
[330686016,1719711039631,-500.0,0.00016438,2]
[330686018,1719711039640,-519.75471503,0.00016438,2]
[330686020,1719711039652,-500.0,0.00016438,2]
[330686022,1719711039663,-500.0,0.00016438,2]
[330686024,1719711039673,-500.0,0.00016438,2]
[330686026,1719711039683,-543.19,0.00016438,2]
[330686028,1719711039692,-929.74,0.00016438,2]
[330686030,1719711039703,-507.86827158,0.00016438,2]
[330686032,1719711039712,-500.0,0.00016438,2]
[330686034,1719711039723,-26653.1,0.00016438,2]
[330686036,1719711039733,-500.0,0.00016438,2]
[330686038,1719711039744,-500.0,0.00016438,2]
[330686040,1719711039754,-500.0,0.00016438,2]
[330686042,1719711039764,-500.0,0.00016438,2]
[330686044,1719711039774,-500.0,0.00016438,2]
[330686046,1719711039784,-500.0,0.00016438,2]
[330686048,1719711039794,-500.0,0.00016438,2]
[330686050,1719711039804,-500.0,0.00016438,2]
[330686053,1719711039815,-500.0,0.00016438,2]
[330686055,1719711039825,-500.0,0.00016438,2]
[330686057,1719711039834,-500.0,0.00016438,2]
[330686059,1719711039844,-500.0,0.00016438,2]
[330686061,1719711039853,-500.0,0.00016438,2]
[330686063,1719711039863,-504.47039906,0.00016438,2]
[330686065,1719711039873,-287.94090915,0.00016438,2]
[330686067,1719711039884,-500.0,0.00016438,2]
[330686069,1719711039894,-568.34,0.00016438,2]
[330686071,1719711039904,-766.75,0.00016438,2]
[330686073,1719711039914,-500.0,0.00016438,2]
[330686075,1719711039924,-500.0,0.00016438,2]
[330686077,1719711039934,-500.0,0.00016438,2]
[330686079,1719711039945,-500.0,0.00016438,2]
[330686081,1719711039955,-500.0,0.00016438,2]
[330686083,1719711039965,-503.40323584,0.00016438,2]
[330686085,1719711039975,-814.16,0.00016438,2]
[330686087,1719711039985,-500.0,0.00016438,2]
[330686089,1719711039995,-502.60619285,0.00016438,2]
[330686091,1719711040006,-500.0,0.00016438,2]
[330686093,1719711040016,-500.0,0.00016438,2]
[330686095,1719711040026,-500.0,0.00016438,2]
[330686097,1719711040036,-500.0,0.00016438,2]
[330686099,1719711040046,-500.0,0.00016438,2]
[330686101,1719711040056,-608.63,0.00016438,2]
[330686103,1719711040066,-500.0,0.00016438,2]
[330686105,1719711040077,-812.61,0.00016438,2]
[330686107,1719711040087,-500.0,0.00016438,2]
[330686109,1719711040098,-500.0,0.00016438,2]
[330686111,1719711040107,-500.0,0.00016438,2]
[330686113,1719711040117,-753.58,0.00016438,2]
[330686115,1719711040127,-500.0,0.00016438,2]
[330686117,1719711040136,-505.58287567,0.00016438,2]
[330686119,1719711040146,-583.83,0.00016438,2]
[330686121,1719711040157,-500.0,0.00016438,2]
[330686123,1719711040166,-662.41,0.00016438,2]
[330686125,1719711040177,-500.0,0.00016438,2]
[330686127,1719711040187,-319.86139206,0.00016438,2]
[330686129,1719711040197,-509.09,0.00016438,2]
[330686131,1719711040208,-500.0,0.00016438,2]
[330686133,1719711040218,-500.0,0.00016438,2]
[330686135,1719711040228,-500.0,0.00016438,2]
[330686137,1719711040239,-500.0,0.00016438,2]
[330686140,1719711040249,-500.0,0.00016438,2]
[330686142,1719711040259,-500.0,0.00016438,2]
[330686144,1719711040269,-500.0,0.00016438,2]
[330686146,1719711040279,-500.0,0.00016438,2]
[330686148,1719711040290,-408.71040211,0.00016438,2]
[330686150,1719711040300,-500.0,0.00016438,2]
[330686152,1719711040310,-500.0,0.00016438,2]
[330686154,1719711040320,-500.0,0.00016438,2]
[330686156,1719711040330,-500.0,0.00016438,2]
[330686158,1719711040340,-500.0,0.00016438,2]
[330686160,1719711040350,-500.0,0.00016438,2]
[330686162,1719711040360,-695.32,0.00016438,2]
[330686164,1719711040369,-302.22589046,0.00016438,2]
[330686166,1719711040379,-504.39391531,0.00016438,2]
[330686168,1719711040389,-637.95,0.00016438,2]
[330686170,1719711040398,-500.0,0.00016438,2]
[330686172,1719711040408,-500.0,0.00016438,2]
[330686174,1719711040417,-500.0,0.00016438,2]
[330686176,1719711040427,-500.0,0.00016438,2]
[330686178,1719711040437,-500.0,0.00016438,2]
[330686180,1719711040447,-500.0,0.00016438,2]
[330686182,1719711040457,-500.0,0.00016438,2]
[330686184,1719711040466,-500.0,0.00016438,2]
[330686186,1719711040475,-500.0,0.00016438,2]
[330686188,1719711040486,-500.0,0.00016438,2]
[330686190,1719711040496,-500.0,0.00016438,2]
[330686192,1719711040506,-1261.27,0.00016438,2]
[330686194,1719711040516,-500.0,0.00016438,2]
[330686196,1719711040526,-522.46275303,0.00016438,2]
[330686198,1719711040536,-500.0,0.00016438,2]
[330686200,1719711040546,-500.0,0.00016438,2]
[330686202,1719711040555,-500.0,0.00016438,2]
[330686204,1719711040570,-500.0,0.00016438,2]
[330686206,1719711040580,-500.0,0.00016438,2]
[330686208,1719711040590,-500.0,0.00016438,2]
[330686219,1719711040689,-500.0,0.00016438,2]
[330686221,1719711040700,-500.0,0.00016438,2]
[330686223,1719711040710,-500.0,0.00016438,2]
[330686225,1719711040720,-500.0,0.00016438,2]
[330686227,1719711040730,-500.0,0.00016438,2]
[330686229,1719711040740,-231.18514124,0.00016438,2]
[330686231,1719711040750,-524.4488104,0.00016438,2]
[330686233,1719711040760,-640.76055392,0.00016438,2]
[330686235,1719711040770,-545.95292562,0.00016438,2]
[330686237,1719711040780,-500.0,0.00016438,2]
[330686239,1719711040790,-568.06,0.00016438,2]
[330686241,1719711040800,-1186.51,0.00016438,2]
[330686243,1719711040809,-703.64,0.00016438,2]
[330686245,1719711040819,-500.0,0.00016438,2]
[330686247,1719711040829,-500.0,0.00016438,2]
[330686249,1719711040838,-500.0,0.00016438,2]
[330686251,1719711040848,-500.0,0.00016438,2]
[330686253,1719711040857,-1335.66,0.00016438,2]
[330686255,1719711040867,-500.0,0.00016438,2]
[330686257,1719711040877,-508.08559448,0.00016438,2]
[330686259,1719711040888,-500.0,0.00016438,2]
[330686261,1719711040898,-567.44,0.00016438,2]
[330686263,1719711040908,-500.0,0.00016438,2]
[330686265,1719711040918,-843.19,0.00016438,2]
[330686267,1719711040928,-500.0,0.00016438,2]
[330686269,1719711040938,-500.0,0.00016438,2]
[330686271,1719711040947,-500.0,0.00016438,2]
[330686273,1719711040956,-500.0,0.00016438,2]
[330686275,1719711040966,-500.0,0.00016438,2]
[330686277,1719711040975,-500.0,0.00016438,2]
[330686279,1719711040985,-500.0,0.00016438,2]
[330686281,1719711040995,-2429.47,0.00016438,2]
[330686283,1719711041004,-500.0,0.00016438,2]
[330686285,1719711041013,-500.0,0.00016438,2]
[330686287,1719711041023,-500.0,0.00016438,2]
[330686289,1719711041032,-756.38,0.00016438,2]
[330686291,1719711041041,-500.0,0.00016438,2]
[330686293,1719711041050,-500.0,0.00016438,2]
[330686295,1719711041059,-516.11560987,0.00016438,2]
[330686297,1719711041068,-500.0,0.00016438,2]
[330686299,1719711041077,-500.0,0.00016438,2]
[330686301,1719711041087,-1276.9,0.00016438,2]
[330686303,1719711041096,-1048.28,0.00016438,2]
[330686305,1719711041105,-599.79,0.00016438,2]
[330686307,1719711041115,-671.64,0.00016438,2]
[330686309,1719711041124,-500.0,0.00016438,2]
[330686311,1719711041134,-500.0,0.00016438,2]
[330686313,1719711041143,-665.13,0.00016438,2]
[330686315,1719711041153,-1298.38,0.00016438,2]
[330686317,1719711041162,-500.0,0.00016438,2]
[330686318,1719711041171,-500.0,0.00016438,2]
[330686320,1719711041180,-659.53,0.00016438,2]
[330686322,1719711041189,-713.41,0.00016438,2]
[330686324,1719711041198,-500.0,0.00016438,2]
[330686326,1719711041207,-1074.38,0.00016438,2]
[330686328,1719711041216,-669.96,0.00016438,2]
[330686330,1719711041226,-500.0,0.00016438,2]
[330686332,1719711041235,-545.02406216,0.00016438,2]
[330686334,1719711041244,-500.0,0.00016438,2]
[330686336,1719711041253,-500.0,0.00016438,2]
[330686338,1719711041263,-151.0,0.00016438,2]
[330686340,1719711041271,-151.0,0.00016438,2]
[330686342,1719711041281,-1225.07,0.00016438,2]
[330686344,1719711041290,-573.8,0.00016438,2]
[330686346,1719711041299,-500.0,0.00016438,2]
[330686348,1719711041308,-500.0,0.00016438,2]
[330686350,1719711041318,-500.0,0.00016438,2]
[330686352,1719711041327,-2085.74,0.00016438,2]
[330686354,1719711041336,-500.0,0.00016438,2]
[330686356,1719711041345,-500.0,0.00016438,2]
[330686358,1719711041355,-500.0,0.00016438,2]
[330686360,1719711041364,-500.0,0.00016438,2]
[330686362,1719711041373,-2152.41,0.00016438,2]
[330686364,1719711041383,-500.0,0.00016438,2]
[330686366,1719711041392,-500.0,0.00016438,2]
[330686368,1719711041401,-500.0,0.00016438,2]
[330686370,1719711041411,-1381.18,0.00016438,2]
[330686372,1719711041420,-500.0,0.00016438,2]
[330686374,1719711041429,-500.0,0.00016438,2]
[330686376,1719711041438,-500.0,0.00016438,2]
[330686378,1719711041447,-498.62426849,0.00016438,2]
[330686380,1719711041457,-507.40533053,0.00016438,2]
[330686382,1719711041466,-500.0,0.00016438,2]
[330686384,1719711041475,-500.0,0.00016438,2]
[330686386,1719711041484,-500.0,0.00016438,2]
[330686388,1719711041493,-500.0,0.00016438,2]
[330686389,1719711041502,-1021.09,0.00016438,2]
[330686391,1719711041511,-3049.6,0.00016438,2]
[330686393,1719711041520,-962.64,0.00016438,2]
[330686395,1719711041530,-753.71,0.00016438,2]
[330686397,1719711041539,-500.0,0.00016438,2]
[330686399,1719711041548,-506.16242033,0.00016438,2]
[330686401,1719711041558,-742.51,0.00016438,2]
[330686403,1719711041569,-2592.02,0.00016438,2]
[330686405,1719711041579,-500.0,0.00016438,2]
[330686407,1719711041589,-1066.98,0.00016438,2]
[330686409,1719711041598,-614.30249063,0.00016438,2]
[330686411,1719711041608,-832.07,0.00016438,2]
[330686413,1719711041620,-272.82419331,0.00016438,2]
[330686414,1719711041629,-594.58,0.00016438,2]
[330686415,1719711041638,-917.88,0.00016438,2]
[330686416,1719711041649,-500.0,0.00016438,2]
[330686417,1719711041658,-500.0,0.00016438,2]
[330686418,1719711041667,-1522.32,0.00016438,2]
[330686419,1719711041675,-500.0,0.00016438,2]
[330686420,1719711041684,-546.48,0.00016438,2]
[330686421,1719711041694,-602.97,0.00016438,2]
[330686422,1719711041702,-257.07669124,0.00016438,2]
[330686423,1719711041711,-605.48974468,0.00016438,2]
[330686424,1719711041719,-777.03,0.00016438,2]
[330686425,1719711041728,-500.0,0.00016438,2]
[330686426,1719711041737,-1664.54,0.00016438,2]
[330686427,1719711041746,-502.89687144,0.00016438,2]
[330686428,1719711041755,-512.8583965,0.00016438,2]
[330686429,1719711041763,-507.33651066,0.00016438,2]
[330686430,1719711041772,-500.0,0.00016438,2]
[330686431,1719711041780,-678.69,0.00016438,2]
[330686432,1719711041789,-500.0,0.00016438,2]
[330686433,1719711041797,-500.0,0.00016438,2]
[330686434,1719711041806,-877.66,0.00016438,2]
[330686435,1719711041815,-500.0,0.00016438,2]
[330686436,1719711041823,-500.0,0.00016438,2]
[330686437,1719711041832,-2593.31,0.00016438,2]
[330686438,1719711041841,-798.4,0.00016438,2]
[330686439,1719711041849,-504.08985848,0.00016438,2]
[330686440,1719711041858,-500.0,0.00016438,2]
[330686441,1719711041867,-352.01106044,0.00016438,2]
[330686442,1719711041877,-500.0,0.00016438,2]
[330686443,1719711041886,-500.0,0.00016438,2]
[330686444,1719711041896,-500.0,0.00016438,2]
[330686445,1719711041908,-427.4534004,0.00016438,2]
[330686446,1719711041995,-500.0,0.00016438,2]
[330686447,1719711042004,-500.0,0.00016438,2]
[330686448,1719711042012,-500.0,0.00016438,2]
[330686449,1719711042021,-500.0,0.00016438,2]
[330686450,1719711042030,-886.43,0.00016438,2]
[330686451,1719711042039,-500.0,0.00016438,2]
[330686452,1719711042048,-3567.82,0.00016438,2]
[330686453,1719711042057,-500.0,0.00016438,2]
[330686454,1719711042066,-500.0,0.00016438,2]
[330686455,1719711042075,-618.94,0.00016438,2]
[330686456,1719711042084,-500.0,0.00016438,2]
[330686457,1719711042092,-286.46347606,0.00016438,2]
[330686458,1719711042101,-615.08,0.00016438,2]
[330686459,1719711042111,-500.0,0.00016438,2]
[330686460,1719711042119,-246.64130882,0.00016438,2]
[330686461,1719711042129,-500.0,0.00016438,2]
[330686462,1719711042137,-1681.67,0.00016438,2]
[330686463,1719711042148,-500.0,0.00016438,2]
[330686464,1719711042157,-500.0,0.00016438,2]
[330686465,1719711042166,-711.41,0.00016438,2]
[330686466,1719711042175,-535.79,0.00016438,2]
[330686467,1719711042184,-491.67118588,0.00016438,2]
[330686468,1719711042193,-500.0,0.00016438,2]
[330686469,1719711042201,-500.0,0.00016438,2]
[330686470,1719711042210,-500.0,0.00016438,2]
[330686471,1719711042219,-500.0,0.00016438,2]
[330686472,1719711042228,-500.0,0.00016438,2]
[330686473,1719711042237,-500.0,0.00016438,2]
[330686474,1719711042246,-500.0,0.00016438,2]
[330686475,1719711042255,-500.0,0.00016438,2]
[330686476,1719711042265,-1938.82,0.00016438,2]
[330686477,1719711042274,-500.0,0.00016438,2]
[330686478,1719711042283,-500.0,0.00016438,2]
[330686479,1719711042292,-500.0,0.00016438,2]
[330686480,1719711042302,-1069.47,0.00016438,2]
[330686481,1719711042311,-500.0,0.00016438,2]
[330686482,1719711042320,-500.0,0.00016438,2]
[330686483,1719711042329,-500.0,0.00016438,2]
[330686484,1719711042338,-500.0,0.00016438,2]
[330686485,1719711042347,-500.0,0.00016438,2]
[330686486,1719711042356,-500.0,0.00016438,2]
[330686487,1719711042365,-500.0,0.00016438,2]
[330686488,1719711042374,-500.0,0.00016438,2]
[330686489,1719711042384,-500.0,0.00016438,2]
[330686490,1719711042394,-500.0,0.00016438,2]
[330686491,1719711042403,-621.4,0.00016438,2]
[330686492,1719711042411,-500.0,0.00016438,2]
[330686493,1719711042422,-522.12,0.00016438,2]
[330686494,1719711042431,-180.45,0.00016438,2]
[330686495,1719711042440,-899.91,0.00016438,2]
[330686496,1719711042449,-500.0,0.00016438,2]
[330686497,1719711042458,-596.54,0.00016438,2]
[330686498,1719711042467,-500.0,0.00016438,2]
[330686499,1719711042476,-1443.69,0.00016438,2]
[330686500,1719711042485,-500.0,0.00016438,2]
[330686501,1719711042494,-500.0,0.00016438,2]
[330686502,1719711042503,-666.27,0.00016438,2]
[330686503,1719711042512,-3167.37,0.00016438,2]
[330686504,1719711042521,-500.0,0.00016438,2]
[330686505,1719711042531,-500.0,0.00016438,2]
[330686506,1719711042540,-501.90636135,0.00016438,2]
[330686507,1719711042548,-1444.56,0.00016438,2]
[330686508,1719711042557,-601.04,0.00016438,2]
[330686509,1719711042567,-633.21,0.00016438,2]
[330686510,1719711042579,-500.0,0.00016438,2]
[330686511,1719711042588,-504.18292755,0.00016438,2]
[330686512,1719711042597,-501.1586156,0.00016438,2]
[330686513,1719711042607,-500.0,0.00016438,2]
[330686514,1719711042617,-1199.72,0.00016438,2]
[330686515,1719711042628,-517.76991674,0.00016438,2]
[330686516,1719711042637,-1456.72,0.00016438,2]
[330686517,1719711042648,-500.0,0.00016438,2]
[330686518,1719711042657,-500.0,0.00016438,2]
[330686519,1719711042666,-3083.04,0.00016438,2]
[330686520,1719711042675,-500.0,0.00016438,2]
[330686521,1719711042684,-500.0,0.00016438,2]
[330686522,1719711042693,-513.46,0.00016438,2]
[330686523,1719711042702,-500.0,0.00016438,2]
[330686524,1719711042711,-500.0,0.00016438,2]
[330686525,1719711042720,-682.6,0.00016438,2]
[330686526,1719711042729,-3752.82,0.00016438,2]
[330686527,1719711042739,-500.0,0.00016438,2]
[330686528,1719711042748,-500.0,0.00016438,2]
[330686529,1719711042758,-500.0,0.00016438,2]
[330686530,1719711042767,-500.0,0.00016438,2]
[330686531,1719711042776,-500.0,0.00016438,2]
[330686532,1719711042785,-504.28075772,0.00016438,2]
[330686533,1719711042794,-500.0,0.00016438,2]
[330686534,1719711042804,-500.0,0.00016438,2]
[330686535,1719711042813,-534.98,0.00016438,2]
[330686536,1719711042822,-500.0,0.00016438,2]
[330686537,1719711042831,-500.0,0.00016438,2]
[330686538,1719711042840,-11583.26,0.00016438,2]
[330686539,1719711042849,-578.73,0.00016438,2]
[330686540,1719711042858,-500.0,0.00016438,2]
[330686541,1719711042867,-500.0,0.00016438,2]
[330686542,1719711042878,-586.35,0.00016438,2]
[330686543,1719711042890,-500.0,0.00016438,2]
[330686544,1719711042898,-500.0,0.00016438,2]
[330686545,1719711042908,-474.59798759,0.00016438,2]
[330686546,1719711042917,-500.0,0.00016438,2]
[330686547,1719711042926,-1887.21,0.00016438,2]
[330686548,1719711042935,-8434.27,0.00016438,2]
[330686549,1719711042944,-500.0,0.00016438,2]
[330686550,1719711042953,-500.0,0.00016438,2]
[330686551,1719711042962,-500.0,0.00016438,2]
[330686552,1719711042971,-2024.83,0.00016438,2]
[330686553,1719711042980,-500.0,0.00016438,2]
[330686554,1719711042989,-571.87425592,0.00016438,2]
[330686555,1719711042998,-500.0,0.00016438,2]
[330686556,1719711043007,-632.5737695,0.00016438,2]
[330686557,1719711043016,-871.44,0.00016438,2]
[330686558,1719711043025,-963.11,0.00016438,2]
[330686559,1719711043034,-536.30899488,0.00016438,2]
[330686560,1719711043043,-500.0,0.00016438,2]
[330686561,1719711043053,-500.0,0.00016438,2]
[330686562,1719711043061,-735.81,0.00016438,2]
[330686563,1719711043070,-500.0,0.00016438,2]
[330686564,1719711043079,-584.68,0.00016438,2]
[330686565,1719711043156,-505.30489645,0.00016438,2]
[330686566,1719711043172,-500.0,0.00016438,2]
[330686567,1719711043181,-46943.14,0.00016438,2]
[330686568,1719711043190,-500.0,0.00016438,2]
[330686569,1719711043199,-500.0,0.00016438,2]
[330686570,1719711043208,-3202.87,0.00016438,2]
[330686571,1719711043217,-500.0,0.00016438,2]
[330686572,1719711043226,-500.0,0.00016438,2]
[330686573,1719711043235,-808.78,0.00016438,2]
[330686575,1719711043244,-792.36,0.00016438,2]
[330686577,1719711043253,-1499.87,0.00016438,2]
[330686578,1719711043262,-500.0,0.00016438,2]
[330686581,1719711043271,-500.0,0.00016438,2]
[330686584,1719711043280,-5795.14,0.00016438,2]
[330686585,1719711043289,-2503.72,0.00016438,2]
[330686587,1719711043298,-2963.02,0.00016438,2]
[330686588,1719711043307,-502.65472074,0.00016438,2]
[330686589,1719711043316,-11691.48,0.00016438,2]
[330686591,1719711043325,-778.02,0.00016438,2]
[330686593,1719711043334,-500.0,0.00016438,2]
[330686595,1719711043343,-2534.1,0.00016438,2]
[330686597,1719711043352,-501.66243871,0.00016438,2]
[330686599,1719711043361,-754.24,0.00016438,2]
[330686601,1719711043370,-500.0,0.00016438,2]
[330686603,1719711043380,-1021.35,0.00016438,2]
[330686605,1719711043389,-9882.28,0.00016438,2]
[330686606,1719711043398,-1165.75,0.00016438,2]
[330686609,1719711043408,-12447.99,0.00016438,2]
[330686610,1719711043417,-500.0,0.00016438,2]
[330686612,1719711043427,-500.0,0.00016438,2]
[330686614,1719711043436,-500.0,0.00016438,2]
[330686616,1719711043445,-501.59453709,0.00016438,2]
[330686618,1719711043454,-500.0,0.00016438,2]
[330686620,1719711043463,-676.3,0.00016438,2]
[330686622,1719711043473,-500.0,0.00016438,2]
[330686624,1719711043482,-500.0,0.00016438,2]
[330686626,1719711043491,-3738.88,0.00016438,2]
[330686628,1719711043500,-500.0,0.00016438,2]
[330686630,1719711043510,-984.07,0.00016438,2]
[330686632,1719711043521,-500.0,0.00016438,2]
[330686634,1719711043531,-579.64,0.00016438,2]
[330686636,1719711043540,-1014.16,0.00016438,2]